bitfinex/quotes_BTCUSD_20240803
["timestamp","ask_amount","ask_price","bid_price","bid_amount"]
[1722666883673,0.07289652,61746.0,61745.0,0.014]
[1722666883879,0.07289652,61746.0,61745.0,0.135467]
[1722666884104,0.04859568,61746.0,61745.0,0.621335]
[1722666884247,0.04859568,61747.0,61746.0,0.502495]
[1722666884638,0.04859568,61748.0,61747.0,0.121463]
[1722666884870,0.07289652,61749.0,61747.0,0.121463]
[1722666886395,0.04858843,61748.0,61747.0,0.134463]
[1722666886796,0.07289652,61749.0,61747.0,0.134463]
[1722666887004,0.04858823,61748.0,61747.0,0.134463]
[1722666887479,0.07289652,61749.0,61747.0,0.027]
[1722666887689,0.07287978,61749.0,61747.0,0.027]
[1722666887897,0.07287978,61749.0,61747.0,0.014]
[1722666888097,0.04858649,61748.0,61747.0,0.014]
[1722666888466,0.07287978,61749.0,61747.0,0.028]
[1722666888701,0.0485842,61748.0,61747.0,0.028]
[1722666888901,0.0485842,61748.0,61746.0,0.181865]
[1722666889176,0.0485842,61748.0,61747.0,0.014]
[1722666889301,0.19434078,61748.0,61747.0,0.027]
[1722666889501,0.07287978,61748.0,61747.0,0.013]
[1722666889708,0.07287978,61748.0,61747.0,0.014]
[1722666890684,0.07287978,61748.0,61745.0,0.121466]
[1722666890988,0.04858233,61747.0,61745.0,0.121466]
[1722666891401,0.04858233,61747.0,61743.0,0.12147]
[1722666891614,0.04858233,61747.0,61744.0,0.121467]
[1722666891810,0.04858233,61747.0,61743.0,0.242942]
[1722666891811,0.04858233,61746.0,61745.0,0.121466]
[1722666892044,0.04858233,61747.0,61745.0,0.135466]
[1722666892287,0.04858233,61747.0,61746.0,0.121465]
[1722666892564,0.04858086,61748.0,61746.0,0.121465]
[1722666892783,0.04858086,61747.0,61746.0,0.121465]
[1722666893941,0.04858086,61747.0,61746.0,0.135465]
[1722666894166,0.04858086,61748.0,61746.0,0.135465]
[1722666894544,0.04858086,61748.0,61746.0,0.149465]
[1722666895158,0.00157439,61747.0,61746.0,0.121465]
[1722666895356,0.04858086,61748.0,61746.0,0.135465]
[1722666895561,0.04858086,61748.0,61747.0,0.121463]
[1722666896813,0.04858086,61748.0,61747.0,0.135463]
[1722666896990,0.04858086,61749.0,61747.0,0.135463]
[1722666898049,0.04858086,61749.0,61747.0,0.149463]
[1722666898248,0.04858086,61749.0,61747.0,0.135463]
[1722666898479,0.04858086,61749.0,61748.0,0.121461]
[1722666898698,0.04858086,61751.0,61750.0,0.121457]
[1722666898891,0.12145216,61756.0,61754.0,0.121449]
[1722666898892,0.04858086,61755.0,61754.0,0.121449]
[1722666899095,0.04858086,61756.0,61755.0,0.121447]
[1722666899304,0.04858086,61757.0,61756.0,0.121445]
[1722666899510,0.04858086,61757.0,61753.0,0.242903]
[1722666899720,0.04856211,61756.0,61754.0,0.121449]
[1722666899919,0.04856211,61756.0,61755.0,0.121447]
[1722666900715,0.04856211,61756.0,61755.0,0.511342]
[1722666900917,0.04856211,61757.0,61756.0,0.364336]
[1722666901362,0.15745924,61759.0,61758.0,0.121441]
[1722666901686,0.15745924,61759.0,61757.0,0.121443]
[1722666901918,0.15745924,61759.0,61755.0,0.438841]
[1722666902127,0.15745924,61759.0,61756.0,0.121445]
[1722666902360,0.27889924,61759.0,61755.0,0.0665]
[1722666902545,0.27889924,61759.0,61756.0,0.011]
[1722666902746,0.15745924,61759.0,61756.0,0.011]
[1722666902945,0.04856211,61757.0,61756.0,0.011]
[1722666903301,0.17000511,61757.0,61753.0,0.121451]
[1722666903618,0.30813054,61758.0,61753.0,0.121451]
[1722666903619,0.04856211,61756.0,61753.0,0.121451]
[1722666904036,0.04856211,61757.0,61753.0,0.121451]
[1722666904509,0.04856211,61757.0,61756.0,0.007]
[1722666904977,0.04853888,61757.0,61756.0,0.009]
[1722666905244,0.04853888,61757.0,61755.0,0.121447]
[1722666905494,0.23525924,61758.0,61755.0,0.121447]
[1722666905495,0.20599812,61758.0,61755.0,0.121447]
[1722666905732,0.15745924,61758.0,61755.0,0.121447]
[1722666905978,0.04853888,61760.0,61759.0,0.121439]
[1722666906212,0.04853277,61763.0,61759.0,0.121438]
[1722666906415,0.15745924,61763.0,61760.0,0.121437]
[1722666907439,0.15745924,61763.0,61758.0,0.0665]
[1722666907651,0.15745924,61763.0,61757.0,0.121443]
[1722666907652,0.199234,61762.0,61757.0,0.121443]
[1722666907858,0.24776677,61762.0,61757.0,0.121443]
[1722666908470,0.24776677,61762.0,61758.0,0.121441]
[1722666908908,0.24776677,61762.0,61759.0,0.008]
[1722666908909,0.12633277,61762.0,61759.0,0.008]
[1722666909144,0.32742301,61763.0,61759.0,0.121439]
[1722666909582,0.32739633,61763.0,61759.0,0.121439]
[1722666910312,0.20596533,61763.0,61759.0,0.121439]
[1722666910444,0.15745924,61763.0,61759.0,0.125439]
[1722666911168,0.44882933,61763.0,61759.0,0.004]
[1722666911338,0.121433,61762.0,61759.0,0.004]
[1722666911555,0.16993909,61762.0,61759.0,0.004]
[1722666911759,0.121433,61762.0,61759.0,0.004]
[1722666911954,0.16993909,61762.0,61759.0,0.004]
[1722666912310,0.121433,61762.0,61759.0,0.004]
[1722666912510,0.16993909,61762.0,61758.0,0.121441]
[1722666912713,0.04850609,61762.0,61758.0,0.121441]
[1722666912916,0.121434,61762.0,61759.0,0.005]
[1722666913196,0.121434,61762.0,61759.0,0.006]
[1722666913401,0.16994009,61762.0,61759.0,0.006]
[1722666913635,0.16994009,61762.0,61757.0,0.121443]
[1722666913803,0.121435,61761.0,61757.0,0.121443]
[1722666914007,0.121435,61761.0,61758.0,0.006]
[1722666914008,0.15745924,61760.0,61758.0,0.006]
[1722666914200,0.121439,61759.0,61758.0,0.001]
[1722666914451,0.27889824,61759.0,61758.0,0.001]
[1722666914781,0.15745924,61759.0,61755.0,0.121446]
[1722666914918,0.15745924,61759.0,61756.0,0.121445]
[1722666915115,0.15745924,61759.0,61754.0,0.0665]
[1722666915317,0.15745924,61759.0,61756.0,0.121445]
[1722666915527,0.15745924,61759.0,61754.0,0.0665]
[1722666915731,0.15745924,61759.0,61757.0,0.121443]
[1722666915944,0.04850609,61764.0,61763.0,0.242863]
[1722666916250,0.12126523,61769.0,61764.0,0.0629]
[1722666916251,0.04850609,61769.0,61764.0,0.0629]
[1722666916358,0.04850609,61771.0,61765.0,0.0791]
[1722666916568,0.15745924,61770.0,61764.0,0.0629]
[1722666916982,0.00157439,61769.0,61765.0,0.121426]
[1722666917142,0.27887724,61770.0,61765.0,0.121426]
[1722666917528,0.27887724,61770.0,61765.0,0.146426]
[1722666918652,0.27887724,61770.0,61766.0,0.121425]
[1722666920241,0.27887724,61770.0,61765.0,0.011]
[1722666920438,0.27887724,61770.0,61765.0,0.132427]
[1722666920640,0.27887724,61770.0,61765.0,0.146427]
[1722666920846,0.27887724,61770.0,61765.0,0.121427]
[1722666921048,0.12142,61769.0,61765.0,0.121427]
[1722666921290,0.12142,61769.0,61766.0,0.014]
[1722666921503,0.121425,61767.0,61764.0,0.0629]
[1722666922064,0.15745924,61768.0,61766.0,0.013]
[1722666922269,0.27888124,61768.0,61766.0,0.013]
[1722666922476,0.121424,61767.0,61765.0,0.014]
[1722666923534,0.121426,61766.0,61765.0,0.014]
[1722666924614,0.121426,61766.0,61765.0,0.028]
[1722666924764,0.52172724,61768.0,61765.0,0.014]
[1722666924964,0.121424,61767.0,61764.0,0.0629]
[1722666925194,0.121424,61767.0,61765.0,0.014]
[1722666925388,0.121424,61767.0,61765.0,0.028]
[1722666925827,0.121424,61767.0,61765.0,0.014]
[1722666926594,0.121424,61767.0,61764.0,0.0629]
[1722666926998,0.121424,61767.0,61764.0,0.0769]
[1722666927171,0.121424,61767.0,61765.0,0.014]
[1722666927580,0.121424,61767.0,61765.0,0.028]
[1722666927745,0.121424,61767.0,61765.0,0.014]
[1722666928175,0.121426,61766.0,61765.0,0.014]
[1722666928422,0.121426,61766.0,61764.0,0.0629]
[1722666928583,0.121426,61766.0,61765.0,0.014]
[1722666929217,0.15745924,61768.0,61765.0,0.014]
[1722666929417,0.15745924,61768.0,61765.0,0.028]
[1722666929418,0.121425,61767.0,61765.0,0.028]
[1722666929982,0.121425,61767.0,61764.0,0.0629]
[1722666930177,0.121425,61767.0,61765.0,0.014]
[1722666930389,0.121425,61767.0,61764.0,0.0629]
[1722666930593,0.121426,61766.0,61764.0,0.0629]
[1722666930774,0.15745924,61768.0,61765.0,0.014]
[1722666930979,0.121424,61767.0,61765.0,0.014]
[1722666931388,0.121424,61767.0,61765.0,0.028]
[1722666931595,0.121424,61767.0,61765.0,0.014]
[1722666931790,0.15745924,61768.0,61764.0,0.0629]
[1722666931791,0.40031124,61766.0,61764.0,0.014]
[1722666932110,0.607137,61765.0,61764.0,0.014]
[1722666932315,0.76459624,61765.0,61764.0,0.014]
[1722666934054,0.76459624,61765.0,61764.0,0.028]
[1722666934259,0.76459624,61765.0,61764.0,0.014]
[1722666934457,1.00745124,61765.0,61764.0,0.014]
[1722666934670,1.09557017,61765.0,61764.0,0.028]
[1722666934888,1.48373138,61765.0,61764.0,0.028]
[1722666935457,1.48373138,61765.0,61764.0,0.014]
[1722666935458,1.48454764,61765.0,61764.0,0.014]
[1722666935781,1.48454764,61765.0,61764.0,0.024]
[1722666935977,1.24169264,61765.0,61764.0,0.024]
[1722666936221,0.121446,61756.0,61751.0,0.121454]
[1722666936577,0.121446,61756.0,61752.0,0.121453]
[1722666938226,0.04851338,61760.0,61756.0,0.0649]
[1722666938424,0.04851338,61760.0,61758.0,0.121441]
[1722666938623,0.16994538,61763.0,61758.0,0.121441]
[1722666938834,0.12300739,61762.0,61758.0,0.121441]
[1722666939489,0.16994638,61762.0,61757.0,0.121443]
[1722666939699,0.12300939,61761.0,61757.0,0.121443]
[1722666939877,0.00157439,61761.0,61756.0,0.0739]
[1722666940049,0.00157439,61761.0,61758.0,0.011]
[1722666940248,0.00157439,61761.0,61758.0,0.121441]
[1722666940460,0.00157439,61762.0,61760.0,0.121437]
[1722666940667,0.04851338,61765.0,61763.0,0.121431]
[1722666940870,0.00157439,61764.0,61761.0,0.263835]
[1722666941237,0.04851338,61765.0,61761.0,0.263835]
[1722666942441,0.04851338,61764.0,61761.0,0.263835]
[1722666942639,0.04851338,61765.0,61761.0,0.263835]
[1722666943068,0.16994138,61765.0,61761.0,0.266835]
[1722666943572,0.04851338,61764.0,61761.0,0.266835]
[1722666944044,0.04851338,61764.0,61761.0,0.275835]
[1722666944199,0.04851338,61764.0,61761.0,0.266835]
[1722666944555,0.04851338,61764.0,61761.0,0.274835]
[1722666944714,0.04851338,61764.0,61761.0,0.271835]
[1722666944915,0.04851338,61764.0,61761.0,0.285835]
[1722666946309,0.04851338,61765.0,61762.0,0.121433]
[1722666946495,0.00157439,61764.0,61762.0,0.121433]
[1722666946654,0.04856334,61765.0,61762.0,0.121433]
[1722666946863,0.04856334,61765.0,61761.0,0.285835]
[1722666947056,0.05013773,61764.0,61761.0,0.285835]
[1722666947252,0.05013773,61764.0,61763.0,0.121431]
[1722666947253,0.00157439,61764.0,61763.0,0.121431]
[1722666947458,0.04856334,61765.0,61763.0,0.121431]
[1722666947882,0.04856334,61765.0,61761.0,0.1594]
[1722666947883,0.04856334,61765.0,61764.0,0.121429]
[1722666948246,0.04856334,61765.0,61762.0,0.132433]
[1722666948501,0.00157439,61764.0,61762.0,0.121433]
[1722666948714,0.04856334,61764.0,61761.0,0.1424]
[1722666948972,0.04856334,61764.0,61763.0,0.003]
[1722666949237,0.19427301,61765.0,61763.0,0.003]
[1722666949466,0.12300339,61764.0,61763.0,0.003]
[1722666949699,0.43713301,61764.0,61763.0,0.003]
[1722666950154,0.43713301,61764.0,61763.0,0.008]
[1722666950384,0.43713301,61764.0,61761.0,0.1424]
[1722666950385,0.3643,61762.0,61761.0,0.1424]
[1722666950606,0.3643,61762.0,61754.0,0.0775]
[1722666950607,0.12144,61759.0,61754.0,0.0775]
[1722666950847,0.58723348,61762.0,61757.0,0.0649]
[1722666950848,0.04857636,61758.0,61757.0,0.0649]
[1722666951078,0.17001336,61760.0,61757.0,0.0649]
[1722666951301,0.12144,61759.0,61757.0,0.0649]
[1722666951543,0.43718855,61758.0,61757.0,0.0649]
[1722666952243,0.121441,61758.0,61757.0,0.0769]
[1722666952701,0.04857855,61758.0,61757.0,0.0769]
[1722666952938,0.20603779,61759.0,61757.0,0.0769]
[1722666953416,0.27889924,61759.0,61757.0,0.0769]
[1722666953643,0.32747779,61759.0,61757.0,0.0769]
[1722666953869,0.121441,61758.0,61757.0,0.0769]
[1722666954099,0.121441,61758.0,61757.0,0.0909]
[1722666954567,0.121441,61758.0,61757.0,0.0789]
[1722666954568,0.17001939,61758.0,61757.0,0.0789]
[1722666954800,0.17001939,61758.0,61757.0,0.0749]
[1722666955026,0.121441,61758.0,61757.0,0.0749]
[1722666955202,0.121441,61758.0,61757.0,0.0789]
[1722666955203,0.17001925,61758.0,61757.0,0.0789]
[1722666955404,0.121441,61758.0,61757.0,0.0789]
[1722666955542,0.121441,61758.0,61757.0,0.0909]
[1722666955945,0.17001925,61758.0,61757.0,0.0909]
[1722666956184,0.121441,61758.0,61757.0,0.0909]
[1722666956770,0.17001925,61758.0,61757.0,0.0909]
[1722666957542,0.41290225,61758.0,61757.0,0.0909]
[1722666957760,0.607207,61758.0,61757.0,0.0909]
[1722666957985,0.68007775,61758.0,61757.0,0.0909]
[1722666958194,0.607207,61758.0,61757.0,0.0909]
[1722666958903,0.46147673,61758.0,61757.0,0.0909]
[1722666959265,0.364324,61758.0,61757.0,0.0909]
[1722666959477,0.46147673,61758.0,61757.0,0.0909]
[1722666959884,1.16100197,61758.0,61757.0,0.026]
[1722666960087,1.32651212,61758.0,61757.0,0.026]
[1722666960421,1.32655186,61758.0,61757.0,0.026]
[1722666960637,1.02736886,61758.0,61757.0,0.026]
[1722666960817,0.82992077,61758.0,61757.0,0.026]
[1722666961021,0.82992077,61758.0,61757.0,0.0823]
[1722666961022,0.15745924,61758.0,61757.0,0.0823]
[1722666961332,0.2060342,61758.0,61757.0,0.0896]
[1722666961547,0.20603459,61758.0,61757.0,0.0896]
[1722666961741,0.27890024,61758.0,61757.0,0.0896]
[1722666962054,0.15745924,61758.0,61757.0,0.0896]
[1722666962985,0.27890024,61758.0,61757.0,0.0896]
[1722666963536,0.15745924,61758.0,61757.0,0.0896]
[1722666963741,0.15745924,61758.0,61757.0,0.1689]
[1722666965578,0.32747634,61758.0,61757.0,0.1689]
[1722666965784,0.27890024,61758.0,61757.0,0.1689]
[1722666968423,0.15745924,61758.0,61757.0,0.1689]
[1722666969274,0.20604415,61758.0,61757.0,0.1689]
[1722666969838,0.15745924,61758.0,61757.0,0.1689]
[1722666970191,0.17002391,61759.0,61757.0,0.1689]
[1722666970452,0.32748315,61759.0,61757.0,0.1689]
[1722666970661,0.04858491,61759.0,61757.0,0.1689]
[1722666970854,0.17002291,61760.0,61757.0,0.1689]
[1722666971065,0.04858491,61759.0,61757.0,0.1689]
[1722666971266,0.04858491,61759.0,61757.0,0.1569]
[1722666971473,0.04858491,61759.0,61757.0,0.1529]
[1722666971907,0.04858491,61759.0,61757.0,0.1669]
[1722666972097,0.04858491,61758.0,61757.0,0.1669]
[1722666972417,0.04858491,61759.0,61757.0,0.1669]
[1722666972622,0.04858491,61758.0,61757.0,0.1669]
[1722666973043,0.04858491,61758.0,61757.0,0.288343]
[1722666973244,0.04858491,61759.0,61758.0,0.121441]
[1722666973444,0.04858491,61760.0,61758.0,0.121441]
[1722666973667,0.07287737,61761.0,61758.0,0.121441]
[1722666973668,0.04858491,61759.0,61758.0,0.121441]
[1722666973866,0.04858491,61760.0,61758.0,0.121441]
[1722666974241,0.04858491,61760.0,61757.0,0.2252]
[1722666974242,0.04858491,61760.0,61757.0,0.2132]
[1722666974447,0.04858491,61760.0,61757.0,0.320643]
[1722666974646,0.17002291,61760.0,61758.0,0.023]
[1722666974846,0.04858491,61759.0,61758.0,0.023]
[1722666975046,0.07287737,61759.0,61758.0,0.014]
[1722666975327,0.121439,61759.0,61758.0,0.014]
[1722666975525,0.07287737,61759.0,61758.0,0.014]
[1722666975940,0.121438,61760.0,61758.0,0.191741]
[1722666975941,0.07287737,61760.0,61758.0,0.191741]
[1722666976143,0.04859574,61759.0,61758.0,0.0703]
[1722666976291,0.04859574,61759.0,61758.0,0.177741]
[1722666976499,0.04859574,61759.0,61758.0,0.191741]
[1722666976906,0.04859574,61760.0,61759.0,0.121439]
[1722666977104,0.07287737,61761.0,61759.0,0.121439]
[1722666977318,0.04859762,61760.0,61759.0,0.121439]
[1722666977545,0.07287737,61761.0,61759.0,0.121439]
[1722666978048,0.07287737,61760.0,61759.0,0.121439]
[1722666978288,0.07287737,61760.0,61759.0,0.130439]
[1722666978515,0.07287737,61761.0,61759.0,0.130439]
[1722666978666,0.07287737,61760.0,61759.0,0.121439]
[1722666979090,0.24289329,61763.0,61759.0,0.121439]
[1722666979091,0.07287737,61761.0,61759.0,0.121439]
[1722666979476,0.07287737,61761.0,61759.0,0.013]
[1722666979720,0.07287737,61761.0,61758.0,0.12144]
[1722666979931,0.07287737,61760.0,61758.0,0.12144]
[1722666980139,0.07287737,61760.0,61759.0,0.022]
[1722666980276,0.19431437,61760.0,61759.0,0.008]
[1722666980459,0.52961022,61760.0,61759.0,0.008]
[1722666980654,0.52803583,61760.0,61759.0,0.013]
[1722666980861,0.121443,61758.0,61753.0,0.12145]
[1722666981059,0.04860421,61755.0,61753.0,0.12145]
[1722666981257,0.17005321,61755.0,61750.0,0.121456]
[1722666981502,0.17005321,61755.0,61747.0,0.595962]
[1722666981503,0.121454,61752.0,61747.0,0.595962]
[1722666981741,0.121452,61753.0,61748.0,0.121461]
[1722666981920,0.121454,61752.0,61747.0,0.4745]
[1722666983247,0.121454,61752.0,61748.0,0.121461]
[1722666983652,0.04860877,61754.0,61750.0,0.014]
[1722666983887,0.17005377,61756.0,61752.0,0.0563]
[1722666984089,0.04860877,61755.0,61752.0,0.0563]
[1722666984322,0.04860877,61755.0,61752.0,0.177753]
[1722666984445,0.17005377,61756.0,61752.0,0.177753]
[1722666984868,0.04860877,61755.0,61752.0,0.177753]
[1722666985316,0.04860877,61755.0,61752.0,0.0563]
[1722666985468,0.04860877,61755.0,61748.0,0.242922]
[1722666985469,0.04860877,61755.0,61751.0,0.121454]
[1722666985898,0.04860877,61755.0,61752.0,0.014]
[1722666986090,0.04860877,61754.0,61752.0,0.028]
[1722666987068,0.19435916,61756.0,61751.0,0.121454]
[1722666987069,0.04860877,61753.0,61751.0,0.121454]
[1722666987242,0.04860877,61753.0,61749.0,0.0563]
[1722666987444,0.04860877,61753.0,61751.0,0.028]
[1722666987670,0.19436016,61755.0,61751.0,0.028]
[1722666987671,0.04860877,61754.0,61751.0,0.028]
[1722666987869,0.04860877,61753.0,61751.0,0.014]
[1722666988287,0.04860877,61753.0,61752.0,0.014]
[1722666988488,0.17005977,61753.0,61752.0,0.014]
[1722666988688,0.17005977,61753.0,61751.0,0.014]
[1722666988689,0.36436,61752.0,61751.0,0.014]
[1722666988898,0.121455,61751.0,61746.0,0.177765]
[1722666989111,0.121455,61751.0,61747.0,0.121463]
[1722666989566,0.121455,61751.0,61746.0,0.0563]
[1722666989775,0.121455,61751.0,61746.0,0.1563]
[1722666990358,0.121455,61751.0,61747.0,0.014]
[1722666990557,0.04860877,61752.0,61749.0,0.0563]
[1722666990761,0.04860877,61753.0,61751.0,0.121453]
[1722666991020,0.04860877,61756.0,61752.0,0.177752]
[1722666991199,0.04860877,61755.0,61752.0,0.0563]
[1722666991600,0.17005577,61756.0,61752.0,0.0563]
[1722666992150,0.04860877,61755.0,61752.0,0.0563]
[1722666992569,0.17005577,61756.0,61752.0,0.0703]
[1722666992783,0.17005577,61756.0,61752.0,0.0563]
[1722666993000,0.04860877,61755.0,61752.0,0.0563]
[1722666993242,0.04860877,61754.0,61752.0,0.0703]
[1722666993462,0.19436016,61756.0,61752.0,0.0703]
[1722666993463,0.04860877,61755.0,61752.0,0.0703]
[1722666993633,0.04860877,61755.0,61752.0,0.0843]
[1722666993819,0.04860877,61755.0,61753.0,0.12145]
[1722666993973,0.04860877,61756.0,61754.0,0.0819904]
[1722666994183,0.09721755,61759.0,61754.0,0.0819904]
[1722666994184,0.04860877,61758.0,61757.0,0.121443]
[1722666995244,0.07291316,61759.0,61757.0,0.121443]
[1722666996634,0.07292493,61759.0,61757.0,0.135443]
[1722666997090,0.07292493,61759.0,61757.0,0.147443]
[1722666997509,0.07292493,61759.0,61757.0,0.135443]
[1722666997721,0.07292493,61759.0,61758.0,0.121441]
[1722666998314,0.04861586,61759.0,61758.0,0.121441]
[1722666999105,0.04861586,61759.0,61758.0,0.135441]
[1722666999578,0.04861586,61759.0,61758.0,0.378324]
[1722666999723,0.04944586,61760.0,61759.0,0.121439]
[1722666999917,0.04944586,61760.0,61759.0,0.177739]
[1722667000289,0.00083,61760.0,61759.0,0.177739]
[1722667000696,0.04944586,61760.0,61759.0,0.177739]
[1722667001091,0.04944586,61760.0,61759.0,0.186739]
[1722667001456,0.04943836,61760.0,61759.0,0.186739]
[1722667002492,0.04943836,61760.0,61759.0,0.200739]
[1722667005581,0.04943836,61760.0,61759.0,0.929376]
[1722667005809,0.00083,61760.0,61759.0,0.929376]
[1722667006571,0.00083,61760.0,61759.0,0.920376]
[1722667007031,0.00083,61760.0,61759.0,0.691497]
[1722667007765,0.00083,61760.0,61759.0,0.677497]
[1722667008153,0.00083,61760.0,61759.0,0.691497]
[1722667009299,0.00083,61760.0,61759.0,0.70138486]
[1722667013829,0.00083,61760.0,61759.0,0.71138486]
[1722667014042,0.00083,61760.0,61759.0,0.95426386]
[1722667014250,0.00083,61760.0,61759.0,1.20740002]
[1722667014678,0.00083,61760.0,61759.0,1.20940002]
[1722667015100,0.00083,61760.0,61759.0,1.07426386]
[1722667015316,0.00083,61760.0,61759.0,1.6079711]
[1722667015532,0.00083,61760.0,61759.0,1.3670921]
[1722667015736,0.00083,61760.0,61759.0,1.6099711]
[1722667016851,0.00083,61765.0,61764.0,0.880006]
[1722667017058,0.00042418,61765.0,61764.0,1.32902865]
[1722667017318,0.00042418,61765.0,61764.0,1.57188765]
[1722667018168,0.00042418,61765.0,61764.0,1.57288765]
[1722667019532,0.00042418,61765.0,61764.0,1.57388765]
[1722667021447,0.00042418,61765.0,61764.0,1.81674665]
[1722667021648,0.00042418,61765.0,61764.0,1.81693447]
[1722667022472,0.00042418,61765.0,61764.0,1.81593447]
[1722667022693,0.00042418,61765.0,61764.0,1.81493447]
[1722667022949,0.00042418,61765.0,61764.0,1.81599415]
[1722667023106,0.00042418,61765.0,61764.0,1.81499415]
[1722667023440,0.00042418,61765.0,61764.0,1.81399415]
[1722667024388,0.00042418,61765.0,61764.0,1.81413236]
[1722667025049,0.00042418,61765.0,61764.0,3.07763236]
[1722667025285,0.00042418,61765.0,61764.0,3.07963236]
[1722667026336,0.18460739,61775.0,61774.0,1.18099]
[1722667026611,0.18460739,61775.0,61774.0,1.43844924]
[1722667026933,0.18460739,61775.0,61774.0,1.41644924]
[1722667027819,0.18460739,61775.0,61774.0,1.17362924]
[1722667027993,0.18460739,61775.0,61774.0,0.70705]
[1722667028590,0.18460739,61775.0,61774.0,0.70805]
[1722667028897,0.18460739,61775.0,61774.0,0.70905]
[1722667029111,0.18460739,61775.0,61774.0,0.60905]
[1722667029349,0.18460739,61775.0,61774.0,0.12341]
[1722667029535,0.18460739,61775.0,61774.0,0.36623]
[1722667030113,0.18460739,61775.0,61774.0,0.36523]
[1722667030871,0.18460739,61775.0,61774.0,0.001]
[1722667031089,0.30601539,61775.0,61774.0,0.001]
[1722667031514,0.12141,61774.0,61769.0,0.121419]
[1722667032486,0.121412,61773.0,61768.0,0.121421]
[1722667032728,0.121412,61773.0,61764.0,0.121429]
[1722667032729,0.121421,61769.0,61764.0,0.121429]
[1722667033354,0.121421,61769.0,61763.0,0.4745]
[1722667033355,0.242839,61770.0,61763.0,0.4745]
[1722667033596,0.121429,61764.0,61763.0,0.4745]
[1722667033787,0.242848,61767.0,61763.0,0.4745]
[1722667033989,0.121428,61765.0,61763.0,0.4745]
[1722667034201,0.242845,61768.0,61763.0,0.4745]
[1722667034202,0.121429,61764.0,61763.0,0.4745]
[1722667034409,0.607147,61764.0,61763.0,0.4745]
[1722667034854,0.364288,61764.0,61763.0,0.4745]
[1722667035035,0.121429,61764.0,61763.0,0.4745]
[1722667035457,0.364288,61764.0,61763.0,0.4745]
[1722667035859,0.365288,61764.0,61763.0,0.4885]
[1722667036068,0.365288,61764.0,61763.0,0.4745]
[1722667036271,0.366288,61764.0,61763.0,0.4865]
[1722667036475,0.367288,61764.0,61763.0,0.5005]
[1722667036957,0.367288,61764.0,61763.0,0.026]
[1722667037304,0.76760624,61764.0,61763.0,0.026]
[1722667038158,0.52474724,61764.0,61763.0,0.026]
[1722667038489,0.121434,61762.0,61757.0,0.121443]
[1722667038609,0.12301039,61761.0,61756.0,0.121445]
[1722667038821,0.12144,61759.0,61754.0,0.121448]
[1722667039017,0.242885,61758.0,61753.0,0.0098485]
[1722667039214,0.121451,61754.0,61752.0,0.4745]
[1722667039534,0.121445,61757.0,61752.0,0.4745]
[1722667039729,0.40033824,61759.0,61752.0,0.4745]
[1722667039956,0.00157439,61758.0,61756.0,0.014]
[1722667040155,0.00157439,61758.0,61755.0,0.121447]
[1722667040156,0.00257439,61758.0,61755.0,0.121447]
[1722667040361,0.001,61758.0,61755.0,0.121447]
[1722667040581,0.122441,61758.0,61753.0,0.13545]
[1722667041148,0.00157439,61757.0,61753.0,0.13545]
[1722667041507,0.001,61754.0,61753.0,0.364354]
[1722667041873,0.001,61754.0,61753.0,0.607257]
[1722667042062,0.001,61754.0,61753.0,0.621257]
[1722667042491,0.001,61758.0,61757.0,0.36433]
[1722667042690,0.001,61758.0,61757.0,0.607217]
[1722667043105,0.001,61758.0,61757.0,0.36433]
[1722667043705,0.001,61758.0,61756.0,0.121445]
[1722667043907,0.00157439,61757.0,61756.0,0.121445]
[1722667044108,0.001,61758.0,61757.0,0.36433]
[1722667044554,0.00157439,61762.0,61758.0,0.12144]
[1722667044763,0.00157439,61762.0,61761.0,0.121435]
[1722667044975,0.00157439,61772.0,61758.0,0.14383816]
[1722667045182,0.00157439,61774.0,61759.0,0.00323764]
[1722667045384,0.00157439,61774.0,61764.0,0.1406]
[1722667045590,0.00157439,61774.0,61773.0,0.121412]
[1722667045798,0.00157439,61774.0,61773.0,0.364236]
[1722667046377,0.001,61774.0,61773.0,0.364236]
[1722667047183,0.002,61774.0,61773.0,0.364236]
[1722667047648,0.001,61774.0,61773.0,0.364236]
[1722667047849,0.001,61774.0,61773.0,0.378236]
[1722667048441,0.18460739,61775.0,61774.0,0.12141]
[1722667048980,0.18460739,61775.0,61774.0,0.36423]
[1722667049782,0.18460739,61775.0,61774.0,0.37823]
[1722667050396,0.18460739,61775.0,61774.0,0.13541]
[1722667050944,0.18460739,61775.0,61774.0,0.37823]
[1722667051541,0.18460739,61775.0,61774.0,0.63505]
[1722667052000,0.18460739,61775.0,61774.0,0.87787]
[1722667053395,0.18543739,61775.0,61774.0,0.87787]
[1722667053617,0.18543739,61775.0,61774.0,0.87987]
[1722667053802,0.18543739,61775.0,61774.0,0.87787]
[1722667054415,0.18543739,61775.0,61774.0,0.86387]
[1722667054625,0.18543739,61775.0,61774.0,0.84987]
[1722667054796,0.18543739,61775.0,61774.0,0.87787]
[1722667054797,0.00083,61775.0,61774.0,0.87787]
[1722667057804,0.00083,61775.0,61774.0,0.8877019]
[1722667071240,0.00083,61775.0,61774.0,0.9439019]
[1722667078532,0.00083,61775.0,61774.0,0.4020619]
[1722667078772,0.00083,61775.0,61774.0,0.2154419]
[1722667078950,0.00083,61775.0,61774.0,0.4582619]
[1722667079273,0.00083,61775.0,61774.0,0.0378319]
[1722667079825,0.243646,61775.0,61774.0,0.028]
[1722667080056,0.365054,61775.0,61774.0,0.028]
[1722667080408,0.122238,61775.0,61774.0,0.028]
[1722667080619,0.122238,61775.0,61774.0,0.014]
[1722667081274,0.122238,61775.0,61774.0,0.013]
[1722667081482,0.122238,61775.0,61774.0,0.027]
[1722667081680,0.122238,61775.0,61774.0,0.013]
[1722667082123,0.122238,61775.0,61774.0,0.027]
[1722667082124,0.00083,61775.0,61774.0,0.027]